bitfinex/quotes_BTCUSD_20240701
["timestamp","ask_amount","ask_price","bid_price","bid_amount"]
[1719840087602,0.00922232,62826.0,62825.0,0.1051]
[1719840089279,0.00922232,62826.0,62825.0,0.1151]
[1719840089529,0.00922232,62826.0,62825.0,0.27743898]
[1719840089685,0.00922232,62826.0,62825.0,0.4132692]
[1719840089887,0.002,62826.0,62825.0,0.4132692]
[1719840090081,0.00922877,62826.0,62825.0,0.4132692]
[1719840090795,0.002,62826.0,62825.0,0.4232692]
[1719840090974,0.00923067,62826.0,62825.0,0.4132692]
[1719840091176,0.16839967,62826.0,62825.0,0.013]
[1719840091829,0.49673867,62826.0,62825.0,0.013]
[1719840092282,0.17839967,62826.0,62825.0,0.013]
[1719840094044,0.89442071,62826.0,62825.0,0.013]
[1719840094362,1.53921758,62826.0,62825.0,0.013]
[1719840094504,1.63921758,62826.0,62825.0,0.013]
[1719840094706,1.95755658,62826.0,62825.0,0.013]
[1719840094923,2.04857708,62826.0,62825.0,0.013]
[1719840095582,2.03857708,62826.0,62825.0,0.013]
[1719840095737,2.03857708,62826.0,62825.0,0.008]
[1719840096087,1.124204,62825.0,62824.0,0.00798]
[1719840096227,1.60643771,62825.0,62824.0,0.00798]
[1719840096430,1.67308442,62825.0,62824.0,0.00798]
[1719840098427,2.1737674,62825.0,62824.0,0.00798]
[1719840098627,2.29150065,62825.0,62824.0,0.00798]
[1719840099041,2.18202065,62825.0,62824.0,0.00798]
[1719840099448,2.1737674,62825.0,62824.0,0.00798]
[1719840099750,2.2970229,62825.0,62824.0,0.00798]
[1719840099891,2.28877015,62825.0,62824.0,0.00798]
[1719840100091,2.30402287,62825.0,62824.0,0.00898]
[1719840100294,4.19712098,62825.0,62824.0,0.00898]
[1719840100523,3.88976798,62825.0,62824.0,0.00898]
[1719840100706,3.75722298,62825.0,62824.0,0.00898]
[1719840100907,3.8036335,62825.0,62824.0,0.00898]
[1719840101153,3.75722298,62825.0,62824.0,0.00898]
[1719840101554,3.55722298,62825.0,62824.0,0.00898]
[1719840101757,2.87385798,62825.0,62824.0,0.00898]
[1719840101931,2.35651998,62825.0,62824.0,0.00898]
[1719840102148,1.43850075,62825.0,62824.0,0.00898]
[1719840102348,1.42185618,62825.0,62824.0,0.00898]
[1719840102580,1.75194746,62825.0,62824.0,0.00898]
[1719840103347,0.2,62808.0,62783.0,0.54309056]
[1719840103703,0.2,62808.0,62798.0,0.15924]
[1719840103982,0.00861091,62807.0,62799.0,0.16233898]
[1719840104362,0.2,62808.0,62799.0,0.16233898]
[1719840104569,0.00860643,62806.0,62800.0,0.032117]
[1719840104764,0.2,62808.0,62801.0,0.16233898]
[1719840104926,0.00860661,62805.0,62801.0,0.16233898]
[1719840105125,0.2,62808.0,62801.0,0.16233898]
[1719840105348,0.00859767,62807.0,62802.0,0.0353287]
[1719840105631,0.2,62808.0,62803.0,0.16233898]
[1719840105780,0.00859535,62806.0,62803.0,0.16233898]
[1719840106001,0.2,62807.0,62803.0,0.16233898]
[1719840106198,0.2,62804.0,62803.0,0.0376422]
[1719840106541,0.2,62804.0,62803.0,0.2089]
[1719840106682,0.20859088,62804.0,62803.0,0.2089]
[1719840107905,0.00859088,62804.0,62803.0,0.2089]
[1719840108301,0.2,62806.0,62803.0,0.2089]
[1719840108526,0.00859047,62804.0,62803.0,0.2089]
[1719840108684,0.001,62804.0,62803.0,0.2646731]
[1719840109094,0.00958779,62804.0,62803.0,0.2646731]
[1719840109296,0.00958779,62804.0,62803.0,0.2596731]
[1719840110555,0.00958779,62804.0,62803.0,0.42201208]
[1719840110711,0.20958779,62804.0,62803.0,0.1464731]
[1719840110910,0.20958779,62804.0,62803.0,0.1147]
[1719840111549,0.22958779,62804.0,62803.0,0.1147]
[1719840111753,0.20958779,62804.0,62803.0,0.1147]
[1719840111951,0.90726379,62804.0,62803.0,0.019]
[1719840113177,1.74416579,62804.0,62803.0,0.019]
[1719840113378,2.07806579,62804.0,62803.0,0.019]
[1719840113576,2.07806579,62804.0,62803.0,0.014]
[1719840114585,1.76061479,62804.0,62803.0,0.019]
[1719840114791,1.50671479,62804.0,62803.0,0.01911109]
[1719840114997,0.71058779,62804.0,62803.0,0.0447546]
[1719840115216,0.73058779,62804.0,62803.0,0.01911109]
[1719840115435,0.73058779,62804.0,62803.0,0.00511109]
[1719840115436,1.18726379,62804.0,62803.0,0.00511109]
[1719840115676,1.20826379,62804.0,62803.0,0.01111109]
[1719840116421,1.20726379,62804.0,62803.0,0.00511109]
[1719840116622,1.64321479,62804.0,62803.0,0.00011109]
[1719840117058,1.64521479,62804.0,62803.0,0.00511109]
[1719840117425,1.64321479,62804.0,62803.0,0.00511109]
[1719840118191,1.64321479,62804.0,62803.0,0.00911109]
[1719840118397,1.96166579,62804.0,62803.0,0.00911109]
[1719840118805,1.96166579,62804.0,62803.0,0.00511109]
[1719840119356,1.96166579,62804.0,62803.0,0.00011109]
[1719840119995,1.96266579,62804.0,62803.0,0.00611109]
[1719840120711,1.96166579,62804.0,62803.0,0.00011109]
[1719840121529,1.96366579,62804.0,62803.0,0.00011109]
[1719840122105,1.96166579,62804.0,62803.0,0.00011109]
[1719840122528,1.96566579,62804.0,62803.0,0.00011109]
[1719840122929,2.19206579,62804.0,62803.0,0.00011109]
[1719840123217,1.96566579,62804.0,62803.0,0.00011109]
[1719840123417,1.96666579,62804.0,62803.0,0.00011109]
[1719840124696,1.84816579,62804.0,62803.0,0.00011109]
[1719840124830,1.84816579,62804.0,62803.0,0.0118246]
[1719840124831,0.51358779,62804.0,62803.0,0.0118246]
[1719840125033,0.51353895,62804.0,62803.0,0.0118246]
[1719840125271,0.69276395,62804.0,62803.0,0.0118246]
[1719840125471,0.53353895,62804.0,62803.0,0.0118246]
[1719840125796,0.51353895,62804.0,62803.0,0.0118246]
[1719840125945,0.31353895,62804.0,62803.0,0.0118246]
[1719840126470,0.50853895,62804.0,62803.0,0.0118246]
[1719840126633,0.50853895,62804.0,62803.0,0.0168246]
[1719840126839,0.51253895,62804.0,62803.0,0.0168246]
[1719840127293,0.50853895,62804.0,62803.0,0.0168246]
[1719840127662,0.52853895,62804.0,62803.0,0.0198246]
[1719840128417,1.28555799,62804.0,62803.0,0.00811109]
[1719840128621,1.60400899,62804.0,62803.0,0.00811109]
[1719840128825,1.86280899,62804.0,62803.0,0.00811109]
[1719840128983,2.18125999,62804.0,62803.0,0.00811109]
[1719840129584,2.18125999,62804.0,62803.0,0.00311109]
[1719840130236,2.18125999,62804.0,62803.0,0.00011109]
[1719840130645,2.18125999,62804.0,62803.0,0.00211109]
[1719840130948,2.18125999,62804.0,62803.0,0.00011109]
[1719840131445,2.18625999,62804.0,62803.0,0.00011109]
[1719840134686,2.18989882,62804.0,62803.0,0.00011109]
[1719840135634,2.35223253,62804.0,62803.0,0.00011109]
[1719840135834,2.18989882,62804.0,62803.0,0.00011109]
[1719840136236,2.18989882,62804.0,62798.0,0.00033509]
[1719840136237,0.677714,62799.0,62798.0,0.00033509]
[1719840136444,1.21619,62799.0,62798.0,0.00033509]
[1719840136887,1.22836042,62799.0,62798.0,0.00033509]
[1719840137306,1.20836042,62799.0,62798.0,0.00033509]
[1719840137808,1.22836042,62799.0,62798.0,0.00333509]
[1719840138785,1.22836042,62799.0,62798.0,0.00833509]
[1719840142630,1.74669101,62799.0,62798.0,0.00833509]
[1719840142828,1.84669101,62799.0,62798.0,0.00833509]
[1719840143192,2.42836701,62799.0,62798.0,0.00833509]
[1719840143398,2.50328418,62799.0,62798.0,0.00833509]
[1719840145288,2.50328418,62799.0,62798.0,0.00845248]
[1719840146334,1.94544072,62799.0,62798.0,0.00845248]
[1719840146636,1.52821501,62799.0,62798.0,0.00845248]
[1719840148260,1.50821501,62799.0,62798.0,0.00845248]
[1719840148467,0.87140842,62799.0,62798.0,0.27795248]
[1719840149091,1.18988442,62799.0,62798.0,0.27795248]
[1719840150775,1.20988442,62799.0,62798.0,0.27795248]
[1719840152814,1.52836042,62799.0,62798.0,0.00845248]
[1719840153384,1.50836042,62799.0,62798.0,0.00845248]
[1719840153572,1.52836042,62799.0,62798.0,0.00845248]
[1719840158398,1.84683642,62799.0,62798.0,0.00845248]
[1719840159885,1.93763642,62799.0,62798.0,0.00845248]
[1719840160472,2.51691242,62799.0,62798.0,0.00845248]
[1719840164571,2.58909979,62799.0,62798.0,0.00845248]
[1719840165066,2.59909979,62799.0,62798.0,0.00845248]
[1719840165285,2.60734383,62799.0,62798.0,0.00845248]
[1719840166462,2.60734383,62799.0,62798.0,0.00045248]
[1719840166667,2.7614335,62799.0,62798.0,0.00045248]
[1719840166880,2.77667722,62799.0,62798.0,0.00145248]
[1719840167222,2.78567715,62799.0,62798.0,0.00145248]
[1719840169801,2.81186805,62799.0,62798.0,0.00145248]
[1719840170016,2.8118678,62799.0,62798.0,0.00145248]
[1719840170221,2.97420678,62799.0,62798.0,0.00145248]
[1719840170420,3.29268278,62799.0,62798.0,0.00145248]
[1719840171199,3.38845278,62799.0,62798.0,0.00145248]
[1719840171377,3.77040589,62799.0,62798.0,0.00145248]
[1719840172503,3.76140589,62799.0,62798.0,0.00145248]
[1719840174699,3.75440589,62799.0,62798.0,0.00045248]
[1719840175040,3.76840589,62799.0,62798.0,0.00045248]
[1719840175238,3.78240589,62799.0,62798.0,0.00045248]
[1719840175542,1.01628798,62778.0,62777.0,0.2617]
[1719840175740,1.10708798,62778.0,62777.0,0.420531]
[1719840176029,1.11686298,62778.0,62777.0,0.420531]
[1719840176945,1.11786298,62778.0,62777.0,0.420531]
[1719840177672,1.09803,62778.0,62777.0,0.420531]
[1719840178568,0.779448,62778.0,62777.0,0.4635081]
[1719840178799,0.779448,62778.0,62777.0,0.7168141]
[1719840178800,0.010775,62778.0,62777.0,0.7168141]
[1719840178969,0.010775,62778.0,62777.0,0.62584708]
[1719840179203,0.010775,62778.0,62777.0,0.6260141]
[1719840179414,0.010775,62778.0,62777.0,0.62584708]
[1719840179790,0.1,62780.0,62777.0,0.36414708]
[1719840179995,0.1,62780.0,62778.0,0.46707039]
[1719840180128,0.1,62780.0,62779.0,0.2683]
[1719840180331,0.1,62780.0,62779.0,0.43063898]
[1719840180332,0.09982747,62780.0,62779.0,0.43063898]
[1719840180583,0.09982747,62780.0,62779.0,0.430806]
[1719840180727,0.09982747,62780.0,62779.0,0.49431284]
[1719840181939,0.359263,62789.0,62780.0,0.00016702]
[1719840181940,0.2,62781.0,62780.0,0.00016702]
[1719840182196,0.2,62783.0,62782.0,0.27376702]
[1719840182393,0.2,62783.0,62782.0,0.47768706]
[1719840182394,0.3,62783.0,62782.0,0.47768706]
[1719840182815,0.3,62783.0,62782.0,0.47752004]
[1719840183974,0.2,62791.0,62789.0,0.1441]
[1719840184289,0.159241,62798.0,62791.0,0.11706702]
[1719840184290,0.2,62794.0,62791.0,0.11706702]
[1719840184489,0.199872,62794.0,62792.0,0.16233898]
[1719840184633,0.199872,62794.0,62793.0,0.3518]
[1719840184828,0.359234,62801.0,62793.0,0.55169614]
[1719840184829,0.4,62800.0,62793.0,0.55169614]
[1719840185034,0.199872,62794.0,62793.0,0.56009614]
[1719840185682,0.199872,62801.0,62795.0,0.2694]
[1719840185884,0.200712,62804.0,62801.0,0.1535]
[1719840186057,0.00084,62804.0,62803.0,0.2694]
[1719840186270,0.00084,62804.0,62803.0,0.43173898]
[1719840186458,0.00084,62804.0,62803.0,0.431906]
[1719840186675,0.00084,62804.0,62803.0,0.43173898]
[1719840189212,0.00084,62804.0,62803.0,0.44473898]
[1719840189436,0.22067298,62804.0,62803.0,0.2824]
[1719840189615,0.37989798,62804.0,62803.0,0.2824]
[1719840189803,0.22067298,62804.0,62803.0,0.2824]
[1719840190003,0.37989798,62804.0,62803.0,0.1289]
[1719840190298,0.37989798,62804.0,62803.0,0.013]
[1719840190299,0.22067298,62804.0,62803.0,0.013]
[1719840190499,0.22067298,62804.0,62803.0,0.01313629]
[1719840190911,0.37989798,62804.0,62803.0,0.02713629]
[1719840191985,1.51667198,62804.0,62803.0,0.02713629]
[1719840193393,1.52480574,62804.0,62803.0,0.01413629]
[1719840193742,1.52680574,62804.0,62803.0,0.01413629]
[1719840194168,1.84525674,62804.0,62803.0,0.01413629]
[1719840194350,2.14759045,62804.0,62803.0,0.01413629]
[1719840194791,2.15759045,62804.0,62803.0,0.01413629]
[1719840195202,2.14759045,62804.0,62803.0,0.01413629]
[1719840195604,2.78298043,62804.0,62803.0,0.01413629]
[1719840196590,2.78298043,62804.0,62803.0,0.00013629]
[1719840196765,2.78098043,62804.0,62803.0,0.00013629]
[1719840197124,2.87675043,62804.0,62803.0,0.00013629]
[1719840197326,2.87675043,62804.0,62803.0,0.00113629]
[1719840197327,4.07380263,62804.0,62803.0,0.00113629]
[1719840197529,4.02662994,62804.0,62803.0,0.00213629]
[1719840198131,4.02663022,62804.0,62803.0,0.00213629]
[1719840198358,4.07380291,62804.0,62803.0,0.00213629]
[1719840198565,4.58198291,62804.0,62803.0,0.00213629]
[1719840199461,4.58198291,62804.0,62803.0,0.00113629]
[1719840199879,3.93389691,62804.0,62803.0,0.00213629]
[1719840200240,3.90388791,62804.0,62803.0,0.00213629]
[1719840201510,3.9038879,62804.0,62803.0,0.00213629]
[1719840202077,3.9038878,62804.0,62803.0,0.00213629]
[1719840204473,3.9038877,62804.0,62803.0,0.00213629]
[1719840206360,4.1038877,62804.0,62803.0,0.00213629]
[1719840207231,4.43898327,62804.0,62803.0,2.9e-07]
[1719840207442,3.84570127,62804.0,62803.0,2.9e-07]
[1719840207970,3.84570195,62804.0,62803.0,2.9e-07]
[1719840208468,0.41983298,62781.0,62780.0,0.1478]
[1719840208683,1.19755498,62781.0,62780.0,0.1478]
[1719840208858,1.20559945,62781.0,62780.0,0.1478]
[1719840209059,1.84273345,62781.0,62780.0,0.1478]
[1719840209439,1.21627498,62779.0,62778.0,0.1179]
[1719840209659,1.21627498,62779.0,62775.0,0.158831]
[1719840209660,1.196354,62776.0,62775.0,0.158831]
[1719840209850,1.83477998,62776.0,62775.0,0.158831]
[1719840210027,1.84278412,62776.0,62775.0,0.158831]
[1719840211575,1.84278412,62776.0,62775.0,0.171755]
[1719840211907,1.84378412,62776.0,62775.0,0.171755]
[1719840212111,1.84365064,62776.0,62775.0,0.171755]
[1719840212720,2.32457735,62776.0,62775.0,0.012924]
[1719840212922,2.34757735,62776.0,62775.0,0.012924]
[1719840213343,2.58447735,62776.0,62775.0,0.012924]
[1719840213597,2.58547735,62776.0,62775.0,0.020924]
[1719840214121,2.34857735,62776.0,62775.0,0.020924]
[1719840214322,2.34857735,62776.0,62775.0,0.012924]
[1719840214323,2.02898435,62776.0,62775.0,0.012924]
[1719840214523,1.85665064,62776.0,62775.0,0.001924]
[1719840215217,1.83681766,62776.0,62775.0,0.001924]
[1719840215393,1.85665064,62776.0,62775.0,0.001924]
[1719840215816,1.51822466,62776.0,62775.0,0.001924]
[1719840216020,0.03600414,62776.0,62775.0,0.43786298]
[1719840216225,0.23575447,62776.0,62775.0,0.48383257]
[1719840217287,0.22175447,62776.0,62775.0,0.48283257]
[1719840217400,0.32175447,62776.0,62775.0,0.48283257]
[1719840217612,0.33575447,62776.0,62775.0,0.48383257]
[1719840217825,0.32175447,62776.0,62775.0,0.48283257]
[1719840218219,0.30975447,62776.0,62775.0,0.48183257]
[1719840218418,0.10988247,62776.0,62775.0,0.48183257]
[1719840218701,0.98564347,62776.0,62775.0,0.32449359]
[1719840219499,0.98664347,62776.0,62775.0,0.33349359]
[1719840219717,0.98653972,62776.0,62775.0,0.33349359]
[1719840219913,0.78553972,62776.0,62775.0,0.32449359]
[1719840220520,0.98553972,62776.0,62775.0,0.32449359]
[1719840220903,0.98553972,62776.0,62775.0,0.31949359]
[1719840221106,0.98653972,62776.0,62775.0,0.32649359]
[1719840221720,0.98753972,62776.0,62775.0,0.33549359]
[1719840222445,0.78653972,62776.0,62775.0,0.32849359]
[1719840223229,0.98653972,62776.0,62775.0,0.32849359]
[1719840224011,0.46794672,62776.0,62775.0,0.32849359]
[1719840224210,0.30965072,62776.0,62775.0,0.33449359]
[1719840224858,0.66894672,62776.0,62775.0,0.33449359]
[1719840225246,0.46894672,62776.0,62775.0,0.288524]
[1719840226095,0.46894672,62776.0,62775.0,0.28869367]
[1719840228427,0.26907472,62776.0,62775.0,0.28869367]
[1719840228660,0.46894672,62776.0,62775.0,0.28869367]
[1719840231254,0.46858526,62776.0,62775.0,0.28869367]
[1719840231657,0.46858526,62776.0,62775.0,0.31941104]
[1719840232275,0.30928926,62776.0,62775.0,0.31941104]
[1719840232794,0.10941726,62776.0,62775.0,0.48175002]
[1719840232994,0.00941726,62776.0,62775.0,0.48175002]
[1719840233226,0.00941726,62776.0,62775.0,0.48191704]
[1719840233584,0.002,62776.0,62775.0,0.48191704]
[1719840233989,0.00989606,62776.0,62775.0,0.48191704]
[1719840234212,0.002,62776.0,62775.0,0.48191704]
[1719840234438,0.00989606,62776.0,62775.0,0.48191704]
[1719840234646,0.002,62776.0,62775.0,0.48175002]
[1719840234881,0.00989606,62776.0,62775.0,0.48175002]
[1719840235085,0.002,62776.0,62775.0,0.48175002]
[1719840235287,0.00988829,62776.0,62775.0,0.48175002]
[1719840236536,0.00988829,62776.0,62775.0,0.48191704]
[1719840237128,0.002,62776.0,62775.0,0.48191704]
[1719840237725,0.002,62776.0,62775.0,1.18684752]
[1719840237907,0.002,62776.0,62775.0,1.50544552]
[1719840238750,0.001,62776.0,62775.0,1.81504352]
[1719840238959,0.2,62797.0,62789.0,0.2647]
[1719840238960,0.199872,62790.0,62789.0,0.2647]
[1719840239158,0.199872,62790.0,62789.0,0.61235668]
[1719840240323,0.299872,62790.0,62789.0,0.61235668]
[1719840240520,0.300872,62790.0,62789.0,0.62335668]
[1719840241003,0.001,62790.0,62789.0,0.62335668]
[1719840241212,0.001,62790.0,62789.0,0.6235237]
[1719840241435,0.001,62790.0,62789.0,0.7827867]
[1719840241638,0.001,62790.0,62789.0,1.41997418]
[1719840241879,0.00084,62804.0,62803.0,0.27396702]
[1719840242090,0.00084,62804.0,62803.0,0.64620483]
[1719840242746,0.00084,62804.0,62803.0,0.64285381]
[1719840243179,0.00084,62804.0,62803.0,0.63105381]
[1719840244313,0.00084,62804.0,62803.0,0.64505381]
[1719840244314,0.00184,62804.0,62803.0,0.64505381]
[1719840244839,0.00184,62804.0,62803.0,0.50135381]
[1719840244840,0.20184,62804.0,62803.0,0.50135381]
[1719840245050,0.20184,62804.0,62803.0,0.38305381]
[1719840245186,0.00184,62804.0,62803.0,0.38305381]
[1719840246202,0.00084,62804.0,62803.0,0.36905381]
[1719840246635,0.00084,62804.0,62803.0,0.37905381]
[1719840247198,0.00084,62804.0,62803.0,0.23422281]
[1719840248785,0.20084,62804.0,62803.0,0.23422281]
[1719840248992,0.20084,62804.0,62803.0,0.22022281]
[1719840249348,0.5797645,62804.0,62803.0,0.024]
[1719840249550,0.6797645,62804.0,62803.0,0.024]
[1719840249730,0.97838252,62804.0,62803.0,0.024]
[1719840250355,0.50070652,62804.0,62803.0,0.024]
[1719840250590,0.30084,62804.0,62803.0,0.024]
[1719840250750,0.10084,62804.0,62803.0,0.18633898]
[1719840250954,0.10084,62804.0,62803.0,0.45596645]
[1719840251316,0.10084,62804.0,62803.0,0.44196645]
[1719840251517,0.10084,62804.0,62803.0,0.44296645]
[1719840251894,0.30084,62804.0,62803.0,0.18216645]
[1719840252043,0.30084,62804.0,62803.0,0.01982747]
[1719840252277,0.32067298,62804.0,62803.0,0.00117687]
[1719840252499,0.9982155,62804.0,62803.0,0.00117687]
[1719840252738,1.3166665,62804.0,62803.0,0.00117687]
[1719840253238,1.3166665,62804.0,62803.0,0.00517687]
[1719840253239,0.778516,62804.0,62803.0,0.00517687]
[1719840253687,0.97838252,62804.0,62803.0,0.00017687]
[1719840254133,0.97838252,62804.0,62803.0,0.01617687]
[1719840254505,0.97838252,62804.0,62803.0,0.00617687]
[1719840255407,0.9982155,62804.0,62803.0,0.00817687]
[1719840255611,1.3166665,62804.0,62803.0,0.00817687]
[1719840256489,1.5165385,62804.0,62803.0,0.00817687]
[1719840258398,1.5165385,62804.0,62803.0,0.00217687]
[1719840258554,0.300712,62804.0,62803.0,0.26097687]
[1719840258796,0.300712,62804.0,62803.0,0.29007456]
[1719840260291,0.300712,62804.0,62803.0,0.29207456]
[1719840260439,0.300712,62804.0,62803.0,0.45441354]
[1719840260638,0.300712,62804.0,62803.0,0.45141354]
[1719840261141,0.300712,62804.0,62803.0,0.45741354]
[1719840261521,0.300712,62804.0,62803.0,0.45141354]
[1719840261723,0.301712,62804.0,62803.0,0.46241354]
[1719840262553,0.301712,62804.0,62803.0,0.46041354]
[1719840262928,0.301712,62804.0,62803.0,0.46541354]
[1719840263331,0.301712,62804.0,62803.0,0.46041354]
[1719840263716,0.301712,62804.0,62803.0,0.46741354]
[1719840264879,0.10184,62804.0,62803.0,0.46758056]
[1719840265100,0.00184,62804.0,62803.0,0.46758056]
[1719840266422,0.00184,62804.0,62803.0,0.46741354]
[1719840266570,0.10184,62804.0,62803.0,0.46758056]
[1719840268321,0.00184,62804.0,62803.0,0.46741354]
[1719840268660,0.10184,62804.0,62803.0,0.46741354]
[1719840270705,0.10184,62804.0,62803.0,0.46758056]
[1719840271247,0.00184,62804.0,62803.0,0.46758056]
[1719840272874,0.00184,62804.0,62803.0,0.46741354]
[1719840273116,0.10184,62804.0,62803.0,0.46741354]
[1719840276552,0.10184,62804.0,62803.0,0.46758056]
[1719840277127,0.10184,62804.0,62803.0,0.78603656]
[1719840277128,0.00184,62804.0,62803.0,0.78603656]
[1719840277346,0.00184,62804.0,62803.0,1.26372056]
[1719840279851,0.00084,62804.0,62803.0,1.25272056]
[1719840280103,0.00084,62804.0,62803.0,1.24572056]
[1719840280271,0.00084,62804.0,62803.0,1.25972056]
[1719840280442,0.00084,62804.0,62803.0,0.63664154]
[1719840280642,0.00084,62804.0,62803.0,0.47741354]
[1719840280841,0.00084,62804.0,62803.0,0.32741354]
[1719840281642,0.00084,62804.0,62803.0,0.31341354]
[1719840281965,0.00084,62804.0,62803.0,0.32741354]
[1719840283424,0.00084,62804.0,62803.0,0.21661354]
[1719840283768,0.00084,62804.0,62803.0,0.20261354]
[1719840284173,0.00084,62804.0,62803.0,0.21661354]
[1719840285973,0.00084,62804.0,62803.0,0.36396469]
[1719840286176,0.00084,62804.0,62803.0,0.48106469]
[1719840286341,0.00084,62804.0,62803.0,0.64029269]
[1719840287221,0.00084,62804.0,62803.0,0.48106469]
[1719840287426,0.00044917,62804.0,62803.0,0.48106469]
[1719840289557,0.00044917,62804.0,62803.0,0.64029269]
[1719840291493,0.00044917,62804.0,62803.0,0.95874869]
[1719840301540,0.00044917,62804.0,62803.0,1.56779417]
[1719840302153,0.00044917,62804.0,62803.0,1.61555126]
[1719840302443,0.00044917,62804.0,62803.0,1.56779417]
[1719840302871,0.00044917,62804.0,62803.0,1.56461004]
[1719840303391,0.00044917,62804.0,62803.0,0.66646456]
[1719840303717,0.00044917,62804.0,62803.0,0.20261354]
[1719840303915,0.00044917,62804.0,62803.0,0.17651585]
[1719840304100,0.20044917,62804.0,62803.0,0.19051585]
[1719840304490,0.20044917,62804.0,62803.0,0.16251585]
[1719840304955,0.20044917,62804.0,62803.0,0.17651585]
[1719840305165,0.00044917,62804.0,62803.0,0.67214646]
[1719840305368,0.200712,62825.0,62823.0,0.00016702]
[1719840305369,0.00084,62825.0,62823.0,0.00016702]
[1719840305496,0.00084,62825.0,62824.0,0.47769002]
[1719840305700,0.00084,62825.0,62824.0,0.79603902]
[1719840306304,0.0084,62839.0,62838.0,0.795695]
[1719840306510,0.0084,62839.0,62838.0,1.41459348]
[1719840306692,0.00084,62848.0,62847.0,0.7958825]
[1719840306893,0.00084,62848.0,62847.0,1.88630269]
[1719840307259,0.0084,62853.0,62852.0,1.1140245]
[1719840307447,0.0084,62853.0,62852.0,1.50326348]
[1719840308693,0.0084,62853.0,62852.0,0.32144198]
[1719840308953,0.0084,62853.0,62852.0,0.34792868]
[1719840309160,0.0084,62853.0,62852.0,0.18882568]
[1719840309393,0.0084,62853.0,62852.0,0.19982568]
[1719840309594,0.08774304,62853.0,62852.0,0.19982568]
[1719840309720,0.30757602,62853.0,62852.0,0.17333898]
[1719840309921,0.50744254,62853.0,62852.0,0.011]
[1719840310125,0.77971454,62853.0,62852.0,0.011]
[1719840310324,1.35701754,62853.0,62852.0,0.011]
[1719840310665,1.03881554,62853.0,62852.0,0.025]
[1719840310828,1.35701754,62853.0,62852.0,0.025]
[1719840311028,1.35701754,62853.0,62852.0,0.011]
[1719840311426,1.35701754,62853.0,62852.0,0.017]
[1719840311793,1.35701754,62853.0,62852.0,0.006]
[1719840312586,1.35701754,62853.0,62852.0,0.009]
[1719840312587,1.67521954,62853.0,62852.0,0.009]
[1719840319148,1.99342154,62853.0,62852.0,0.009]
[1719840319560,2.47935525,62853.0,62852.0,0.009]
[1719840319759,2.82055725,62853.0,62852.0,0.009]
[1719840320201,2.82055725,62853.0,62829.0,0.47591475]
[1719840320202,0.4618995,62830.0,62829.0,0.47591475]
[1719840320676,0.21983298,62826.0,62825.0,0.158831]
[1719840320878,0.21983298,62826.0,62825.0,0.32116998]
[1719840320879,0.2,62826.0,62825.0,0.32116998]
[1719840321601,0.40122652,62830.0,62825.0,0.32116998]
[1719840321602,0.2,62827.0,62825.0,0.32116998]
[1719840321852,0.4210595,62830.0,62825.0,0.158831]
[1719840321853,0.2,62828.0,62825.0,0.158831]
[1719840322050,0.2,62827.0,62826.0,0.17822208]
[1719840322615,0.2,62832.0,62826.0,0.17822208]
[1719840322786,0.199872,62834.0,62826.0,0.1814052]
[1719840323015,0.199872,62834.0,62827.0,0.03404032]
[1719840323211,0.199872,62834.0,62828.0,0.32352186]
[1719840323411,0.2,62833.0,62828.0,0.32352186]
[1719840323787,0.2,62832.0,62829.0,0.006]
[1719840324012,0.2,62831.0,62830.0,0.16233898]
[1719840324394,0.2,62831.0,62830.0,0.15729198]
[1719840324611,0.2,62833.0,62830.0,0.15729198]
[1719840324939,0.2,62832.0,62830.0,0.15729198]
[1719840325275,0.21983298,62831.0,62830.0,0.15729198]
[1719840325483,0.27934304,62831.0,62830.0,0.15729198]
[1719840325691,0.28034304,62831.0,62830.0,0.20589662]
[1719840325912,0.30017602,62831.0,62830.0,0.20589662]
[1719840326190,0.28034304,62831.0,62830.0,0.20589662]
[1719840326392,0.30017602,62831.0,62830.0,0.20589662]
[1719840327280,0.28034304,62831.0,62830.0,0.20589662]
[1719840327433,0.30017602,62831.0,62830.0,0.20589662]
[1719840327677,0.28034304,62831.0,62830.0,0.20989662]
[1719840327871,0.27934304,62831.0,62830.0,0.19789662]
[1719840328073,0.27934304,62831.0,62830.0,0.20889662]
[1719840328272,0.2,62831.0,62830.0,0.17229198]
[1719840328475,0.21983298,62831.0,62830.0,0.17229198]
[1719840328974,0.5788565,62831.0,62830.0,0.015]
[1719840329891,0.5788565,62831.0,62830.0,0.004]
[1719840329892,0.8971705,62831.0,62830.0,0.004]
[1719840330348,0.87733752,62831.0,62830.0,0.004]
[1719840330522,0.8971705,62831.0,62830.0,0.004]
[1719840330724,1.2154845,62831.0,62830.0,0.004]
[1719840330979,1.9997705,62831.0,62830.0,0.004]
[1719840331701,1.9997705,62831.0,62812.0,0.0686]
[1719840331702,0.2,62817.0,62812.0,0.0686]
[1719840331901,0.2,62817.0,62813.0,0.19425988]
[1719840332344,0.2,62817.0,62813.0,0.16233898]
[1719840332345,0.2,62815.0,62813.0,0.16233898]
[1719840332640,0.2,62817.0,62813.0,0.16233898]
[1719840333831,0.201,62817.0,62813.0,0.17633898]
[1719840334966,0.2,62816.0,62813.0,0.17633898]
[1719840335173,0.201,62817.0,62813.0,0.17633898]
[1719840335378,0.201,62817.0,62813.0,0.22587268]
[1719840336108,0.001,62817.0,62813.0,0.22587268]
[1719840336310,0.359182,62821.0,62813.0,0.21187268]
[1719840336627,0.359182,62821.0,62813.0,0.22587268]
[1719840336851,0.001,62817.0,62813.0,0.22587268]
[1719840337062,0.001,62817.0,62814.0,0.05117021]
[1719840337266,0.001,62817.0,62815.0,0.16233898]
[1719840337730,0.359182,62821.0,62815.0,0.16233898]
[1719840338113,0.2,62819.0,62815.0,0.16233898]
[1719840338314,0.360182,62821.0,62815.0,0.16233898]
[1719840338652,0.2,62819.0,62816.0,0.03976762]
[1719840338841,0.2,62819.0,62817.0,0.16233898]
[1719840339079,0.001,62821.0,62817.0,0.16233898]
[1719840339481,0.001,62821.0,62817.0,0.32116998]
[1719840340258,0.001,62821.0,62817.0,0.321337]
[1719840340437,0.001,62821.0,62818.0,0.03711046]
[1719840340672,0.359047,62824.0,62819.0,0.16233898]
[1719840341036,0.199872,62824.0,62820.0,0.00318349]
[1719840341235,0.199872,62824.0,62822.0,0.1574]
[1719840341589,0.2,62830.0,62823.0,0.18616481]
[1719840341590,0.199872,62830.0,62823.0,0.18616481]